fUSD/lending_fUSD_20240918
["ID","MTS","AMOUNT","RATE_DAILY","PERIOD"]
[338491691,1726701058172,-1134.15,0.0001452,2]
[338491692,1726701058182,-500.0,0.0001452,2]
[338491693,1726701058191,-751.09,0.0001452,2]
[338491694,1726701058201,-500.0,0.0001452,2]
[338491695,1726701058211,-1073.28,0.0001452,2]
[338491696,1726701058221,-500.0,0.0001452,2]
[338491697,1726701058231,-6120.71,0.0001452,2]
[338491698,1726701058240,-3051.55,0.0001452,2]
[338491699,1726701058250,-4235.17,0.0001452,2]
[338491700,1726701058259,-12479.38,0.0001452,2]
[338491701,1726701058268,-500.0,0.0001452,2]
[338491702,1726701058279,-500.0,0.0001452,2]
[338491703,1726701058289,-715.95,0.0001452,2]
[338491704,1726701058300,-3399.17,0.0001452,2]
[338491705,1726701058309,-653.25,0.0001452,2]
[338491706,1726701058322,-500.0,0.0001452,2]
[338491707,1726701058331,-676.36,0.0001452,2]
[338491708,1726701058341,-6327.6,0.0001452,2]
[338491709,1726701058350,-892.28,0.0001452,2]
[338491710,1726701058360,-1522.38,0.0001452,2]
[338491711,1726701058370,-500.0,0.0001452,2]
[338491712,1726701058379,-500.0,0.0001452,2]
[338491713,1726701058388,-1813.18,0.0001452,2]
[338491714,1726701058399,-500.0,0.0001452,2]
[338491715,1726701058409,-500.0,0.0001452,2]
[338491716,1726701058419,-500.0,0.0001452,2]
[338491717,1726701058429,-500.0,0.0001452,2]
[338491718,1726701058439,-500.0,0.0001452,2]
[338491719,1726701058449,-500.0,0.0001452,2]
[338491720,1726701058458,-500.0,0.0001452,2]
[338491721,1726701058468,-14571.02,0.0001452,2]
[338491722,1726701058478,-760.95,0.0001452,2]
[338491723,1726701058488,-6260.63,0.0001452,2]
[338491724,1726701058498,-4668.93,0.0001452,2]
[338491725,1726701058508,-1796.9,0.0001452,2]
[338491726,1726701058517,-2043.5,0.0001452,2]
[338491727,1726701058527,-151.0,0.0001452,2]
[338491728,1726701058537,-151.0,0.0001452,2]
[338491729,1726701058550,-694.48,0.0001452,2]
[338491730,1726701058559,-11148.94,0.0001452,2]
[338491731,1726701058569,-500.0,0.0001452,2]
[338491732,1726701058579,-1414.96,0.0001452,2]
[338491733,1726701058590,-3664.06,0.0001452,2]
[338491734,1726701058600,-539.3,0.0001452,2]
[338491735,1726701058610,-1500.47,0.0001452,2]
[338491736,1726701058619,-500.0,0.0001452,2]
[338491737,1726701058629,-500.0,0.0001452,2]
[338491738,1726701058639,-1509.97,0.0001452,2]
[338491739,1726701058649,-500.0,0.0001452,2]
[338491740,1726701058658,-500.0,0.0001452,2]
[338491741,1726701058668,-1344.97,0.0001452,2]
[338491742,1726701058678,-500.0,0.0001452,2]
[338491743,1726701058688,-500.0,0.0001452,2]
[338491744,1726701058697,-500.0,0.0001452,2]
[338491745,1726701058707,-500.0,0.0001452,2]
[338491746,1726701058716,-5853.48,0.0001452,2]
[338491747,1726701058726,-4099.79,0.0001452,2]
[338491748,1726701058736,-9305.1,0.0001452,2]
[338491749,1726701058747,-567.33,0.0001452,2]
[338491750,1726701058758,-13328.59,0.0001452,2]
[338491751,1726701058768,-4321.67,0.0001452,2]
[338491752,1726701058778,-500.0,0.0001452,2]
[338491753,1726701058788,-1258.98,0.0001452,2]
[338491754,1726701058801,-1095.7,0.0001452,2]
[338491755,1726701058810,-500.0,0.0001452,2]
[338491756,1726701058820,-1180.07,0.0001452,2]
[338491757,1726701058830,-5834.11,0.0001452,2]
[338491758,1726701058840,-895.61,0.0001452,2]
[338491759,1726701058849,-1152.96,0.0001452,2]
[338491760,1726701058859,-500.0,0.0001452,2]
[338491761,1726701058869,-7688.34,0.0001452,2]
[338491762,1726701058879,-500.0,0.0001452,2]
[338491763,1726701058889,-531.22051326,0.0001452,2]
[338491764,1726701058899,-100000.0,0.0001452,2]
[338491765,1726701058910,-1440.18,0.0001452,2]
[338491766,1726701058920,-500.0,0.0001452,2]
[338491767,1726701058931,-6106.62,0.0001452,2]
[338491768,1726701058942,-3995.47,0.0001452,2]
[338491769,1726701058951,-1801.72,0.0001452,2]
[338491770,1726701058961,-531.35,0.0001452,2]
[338491771,1726701058972,-530.8,0.0001452,2]
[338491772,1726701058982,-500.0,0.0001452,2]
[338491773,1726701058991,-500.0,0.0001452,2]
[338491774,1726701059001,-2973.52,0.0001452,2]
[338491775,1726701059011,-1816.25,0.0001452,2]
[338491776,1726701059021,-500.0,0.0001452,2]
[338491777,1726701059031,-622.61,0.0001452,2]
[338491778,1726701059041,-718.35,0.0001452,2]
[338491779,1726701059052,-307.8099507,0.0001452,2]
[338491780,1726701059062,-1737.68,0.0001452,2]
[338491781,1726701059072,-500.0,0.0001452,2]
[338491782,1726701059082,-2844.06,0.0001452,2]
[338491783,1726701059091,-500.0,0.0001452,2]
[338491784,1726701059101,-965.61,0.0001452,2]
[338491785,1726701059111,-2006.87,0.0001452,2]
[338491786,1726701059122,-784.3,0.0001452,2]
[338491787,1726701059131,-500.0,0.0001452,2]
[338491788,1726701059141,-1074.23,0.0001452,2]
[338491789,1726701059151,-500.0,0.0001452,2]
[338491790,1726701059161,-7982.33,0.0001452,2]
[338491791,1726701059170,-1780.82,0.0001452,2]
[338491792,1726701059179,-500.0,0.0001452,2]
[338491793,1726701059190,-2542.71,0.0001452,2]
[338491794,1726701059200,-500.0,0.0001452,2]
[338491795,1726701059210,-6602.33,0.0001452,2]
[338491796,1726701059219,-6602.33,0.0001452,2]
[338491797,1726701059229,-6602.33,0.0001452,2]
[338491798,1726701059238,-6602.33,0.0001452,2]
[338491799,1726701059248,-6602.33,0.0001452,2]
[338491800,1726701059258,-6602.33,0.0001452,2]
[338491801,1726701059268,-3496.5,0.0001452,2]
[338491802,1726701059278,-6602.33,0.0001452,2]
[338491803,1726701059287,-500.0,0.0001452,2]
[338491804,1726701059297,-6602.33,0.0001452,2]
[338491805,1726701059307,-625.76603345,0.0001452,2]
[338491806,1726701059318,-4974.8,0.0001452,2]
[338491807,1726701059331,-6602.33,0.0001452,2]
[338491808,1726701059341,-6602.33,0.0001452,2]
[338491809,1726701059351,-500.0,0.0001452,2]
[338491810,1726701059361,-5028.96,0.0001452,2]
[338491811,1726701059371,-620.01,0.0001452,2]
[338491812,1726701059381,-6602.33,0.0001452,2]
[338491813,1726701059391,-6602.33,0.0001452,2]
[338491814,1726701059401,-500.0,0.0001452,2]
[338491815,1726701059410,-6602.33,0.0001452,2]
[338491816,1726701059420,-6602.33,0.0001452,2]
[338491817,1726701059430,-500.0,0.0001452,2]
[338491818,1726701059439,-6602.33,0.0001452,2]
[338491819,1726701059450,-6602.33,0.0001452,2]
[338491820,1726701059459,-193.71880736,0.0001452,2]
[338491821,1726701059468,-6602.33,0.0001452,2]
[338491822,1726701059478,-6602.33,0.0001452,2]
[338491823,1726701059487,-500.0,0.0001452,2]
[338491824,1726701059496,-2249.69,0.0001452,2]
[338491825,1726701059506,-500.0,0.0001452,2]
[338491826,1726701059516,-500.0,0.0001452,2]
[338491827,1726701059525,-885.19,0.0001452,2]
[338491828,1726701059535,-723.46,0.0001452,2]
[338491829,1726701059544,-8201.83,0.0001452,2]
[338491830,1726701059555,-151.0,0.0001452,2]
[338491831,1726701059564,-593.52244047,0.0001452,2]
[338491832,1726701059573,-272.419401,0.0001452,2]
[338491833,1726701059583,-500.0,0.0001452,2]
[338491834,1726701059592,-510.28789894,0.0001452,2]
[338491835,1726701059602,-500.0,0.0001452,2]
[338491836,1726701059611,-554.09,0.0001452,2]
[338491837,1726701059621,-500.0,0.0001452,2]
[338491838,1726701059631,-500.0,0.0001452,2]
[338491839,1726701059640,-1005.02,0.0001452,2]
[338491840,1726701059650,-1273.14,0.0001452,2]
[338491841,1726701059660,-718.43,0.0001452,2]
[338491842,1726701059670,-157.85060198,0.0001452,2]
[338491843,1726701059679,-500.0,0.0001452,2]
[338491844,1726701059688,-500.0,0.0001452,2]
[338491845,1726701059698,-500.0,0.0001452,3]
[338491846,1726701059707,-500.0,0.0001452,2]
[338491847,1726701059716,-1376.2,0.0001452,2]
[338491848,1726701059726,-2830.22,0.0001452,2]
[338491849,1726701059735,-7235.56,0.0001452,2]
[338491850,1726701059745,-1289.04,0.0001452,2]
[338491851,1726701059754,-628.89,0.0001452,2]
[338491852,1726701059764,-951.74,0.0001452,2]
[338491853,1726701059773,-500.0,0.0001452,2]
[338491854,1726701059782,-774.41,0.0001452,2]
[338491855,1726701059792,-2874.83,0.0001452,2]
[338491856,1726701059804,-1077.79,0.0001452,2]
[338491857,1726701059813,-1000.0,0.00014521,2]
[338491858,1726701059823,-163.92,0.00014524,2]
[338491859,1726701059832,-348.7076,0.00014527,2]
[338491860,1726701059842,-203.0,0.0001455,2]
[338491861,1726701059851,-15745.61771151,0.00014553,2]
[338491862,1726701059862,-176.81501871,0.00014566,2]
[338491863,1726701059872,-472.82147216,0.00014573,2]
[338491864,1726701059882,-500.0,0.00014573,2]
[338491865,1726701059891,-500.0,0.00014573,2]
[338491866,1726701059901,-271.30458156,0.00014573,2]
[338491867,1726701059912,-500.0,0.00014573,2]
[338491868,1726701059924,-500.0,0.00014573,2]
[338491869,1726701059935,-308.63472768,0.0001458,2]
[338491870,1726701059946,-500.0,0.00014588,2]
[338491871,1726701059957,-500.0,0.00014588,2]
[338491872,1726701059968,-500.0,0.00014588,2]
[338491873,1726701059978,-500.0,0.00014588,2]
[338491874,1726701059989,-870.3,0.00014588,2]
[338491875,1726701060001,-500.0,0.00014588,2]
[338491876,1726701060011,-882.62940011,0.00014588,2]
[338491877,1726701060022,-500.0,0.00014588,2]
[338491878,1726701060032,-500.0,0.00014588,2]
[338491879,1726701060042,-5221.68,0.00014588,2]
[338491880,1726701060053,-882.81,0.00014588,2]
[338491881,1726701060063,-6602.33,0.00014588,2]
[338491882,1726701060073,-288.082119,0.00014589,2]
[338491883,1726701060083,-151.0,0.00014589,2]
[338491884,1726701060092,-151.0,0.00014589,2]
[338491885,1726701060102,-151.0,0.00014589,2]
[338491886,1726701060112,-151.0,0.00014589,2]
[338491887,1726701060121,-151.0,0.00014589,2]
[338491888,1726701060131,-500.0,0.00014589,2]
[338491889,1726701060141,-151.0,0.00014589,2]
[338491890,1726701060152,-2266.75,0.00014589,2]
[338491891,1726701060162,-1828.51,0.00014589,2]
[338491892,1726701060172,-500.0,0.00014589,2]
[338491893,1726701060182,-960.62,0.00014589,2]
[338491894,1726701060193,-151.0,0.00014589,2]
[338491895,1726701060203,-865.98,0.00014589,2]
[338491896,1726701060213,-500.0,0.00014589,2]
[338491897,1726701060223,-500.0,0.00014589,2]
[338491898,1726701060234,-2378.01,0.00014589,2]
[338491899,1726701060245,-151.0,0.00014589,2]
[338491900,1726701060255,-500.0,0.00014589,2]
[338491901,1726701060264,-3771.81,0.00014589,2]
[338491902,1726701060274,-3024.25,0.00014589,2]
[338491903,1726701060284,-500.0,0.00014589,2]
[338491904,1726701060294,-2388.85,0.00014589,2]
[338491905,1726701060305,-500.0,0.00014589,2]
[338491906,1726701060315,-1774.02,0.00014589,2]
[338491907,1726701060327,-500.0,0.00014589,2]
[338491908,1726701060337,-962.31,0.00014589,2]
[338491909,1726701060347,-2950.76,0.00014589,2]
[338491910,1726701060357,-151.0,0.00014589,2]
[338491911,1726701060367,-500.0,0.00014589,2]
[338491912,1726701060377,-824.48,0.00014589,2]
[338491913,1726701060387,-155.817805,0.00014589,2]
[338491914,1726701060397,-3013.16,0.00014589,2]
[338491915,1726701060407,-155.817805,0.00014589,2]
[338491916,1726701060417,-1278.47,0.00014589,2]
[338491917,1726701060427,-655.42,0.00014589,2]
[338491918,1726701060438,-164.76,0.00014589,2]
[338491919,1726701060448,-151.0,0.00014589,2]
[338491920,1726701060458,-500.0,0.00014589,2]
[338491921,1726701060467,-2895.4,0.00014589,2]
[338491922,1726701060477,-500.0,0.00014589,2]
[338491923,1726701060487,-1367.16,0.00014589,2]
[338491924,1726701060497,-500.0,0.00014589,2]
[338491925,1726701060506,-2104.93,0.00014589,2]
[338491926,1726701060516,-2496.39,0.00014589,2]
[338491927,1726701060526,-950.37,0.00014589,2]
[338491928,1726701060536,-500.0,0.00014589,2]
[338491929,1726701060547,-151.0,0.00014589,2]
[338491930,1726701060561,-682.71,0.00014589,2]
[338491931,1726701060571,-1647.72,0.00014589,2]
[338491932,1726701060581,-3915.91,0.00014589,2]
[338491933,1726701060591,-565.83,0.00014589,2]
[338491934,1726701060600,-500.0,0.00014589,2]
[338491935,1726701060609,-546.2974988,0.00014589,2]
[338491936,1726701060619,-534.73,0.00014589,2]
[338491937,1726701060628,-151.0,0.00014589,2]
[338491938,1726701060638,-151.0,0.00014589,2]
[338491939,1726701060647,-151.0,0.00014589,2]
[338491940,1726701060657,-151.0,0.00014589,2]
[338491941,1726701060667,-151.0,0.00014589,2]
[338491942,1726701060677,-2020.87,0.00014589,2]
[338491943,1726701060687,-867.64,0.00014589,2]
[338491944,1726701060698,-655.32,0.00014589,2]
[338491945,1726701060708,-151.0,0.00014589,2]
[338491946,1726701060718,-860.32,0.00014589,2]
[338491947,1726701060728,-151.0,0.00014589,2]
[338491948,1726701060737,-151.0,0.00014589,2]
[338491949,1726701060747,-151.0,0.00014589,2]
[338491950,1726701060757,-257.889973,0.00014589,2]
[338491951,1726701060767,-257.889973,0.00014589,2]
[338491952,1726701060776,-151.0,0.00014589,2]
[338491953,1726701060786,-151.0,0.00014589,2]
[338491954,1726701060796,-151.0,0.00014589,2]
[338491955,1726701060809,-156.244954,0.00014589,2]
[338491956,1726701060819,-156.244954,0.00014589,2]
[338491957,1726701060829,-151.0,0.00014589,2]
[338491958,1726701060838,-151.0,0.00014589,2]
[338491959,1726701060848,-151.0,0.00014589,2]
[338491960,1726701060858,-667.188131,0.00014589,2]
[338491961,1726701060868,-151.0,0.00014589,2]
[338491962,1726701060878,-207.774682,0.00014589,2]
[338491963,1726701061120,-207.774682,0.00014589,2]
[338491964,1726701061131,-151.0,0.00014589,2]
[338491965,1726701061140,-151.0,0.00014589,2]
[338491966,1726701061150,-151.0,0.00014589,2]
[338491967,1726701061160,-151.0,0.00014589,2]
[338491968,1726701061170,-154.670468,0.00014589,2]
[338491969,1726701061179,-154.670468,0.00014589,2]
[338491970,1726701061188,-203.0601175,0.00014593,2]
[338491971,1726701061198,-298.0532462,0.00014593,2]
[338491972,1726701061208,-2972.8811705,0.00014593,2]
[338491973,1726701061218,-1479.5676694,0.00014593,2]
[338491974,1726701061228,-11805.9316126,0.00014593,2]
[338491975,1726701061237,-170.036168,0.00014593,2]
[338491976,1726701061247,-302.3125454,0.00014593,2]
[338491977,1726701061256,-870.3,0.00014597,2]
[338491978,1726701061266,-882.81,0.00014597,2]
[338491979,1726701061275,-151.0,0.00014597,2]
[338491980,1726701061285,-2266.75,0.00014598,2]
[338491981,1726701061294,-500.0,0.00014598,2]
[338491982,1726701061316,-500.0,0.00014598,2]
[338491983,1726701061329,-500.0,0.00014598,2]
[338491984,1726701061338,-500.0,0.00014598,2]
[338491985,1726701061348,-5221.68,0.00014598,2]
[338491986,1726701061357,-5221.68,0.00014598,2]
[338491987,1726701061367,-5221.68,0.00014598,2]
[338491988,1726701061377,-5221.68,0.00014598,2]
[338491989,1726701061387,-5221.79031205,0.00014598,2]
[338491990,1726701061397,-6602.33,0.00014598,2]
[338491991,1726701061406,-6602.33,0.00014598,2]
[338491992,1726701061416,-6602.33,0.00014598,2]
[338491993,1726701061426,-6602.33,0.00014598,2]
[338491994,1726701061435,-6602.38112721,0.00014598,2]
[338491995,1726701061445,-500.0,0.00014599,2]
[338491996,1726701061454,-500.0,0.00014599,2]
[338491997,1726701061463,-500.0,0.00014599,2]
[338491998,1726701061473,-500.0,0.00014599,2]
[338491999,1726701061482,-263.15931361,0.00014599,2]
[338492000,1726701061493,-151.0,0.00014599,2]
[338492001,1726701061503,-500.0,0.00014599,2]
[338492002,1726701061513,-500.0,0.00014599,2]
[338492003,1726701061523,-500.0,0.00014599,2]
[338492004,1726701061533,-500.0,0.00014599,2]
[338492005,1726701061544,-500.0,0.00014599,2]
[338492006,1726701061557,-500.0,0.00014599,2]
[338492007,1726701061567,-500.0,0.00014599,2]
[338492008,1726701061576,-500.0,0.00014599,2]
[338492009,1726701061585,-500.0,0.00014599,2]
[338492010,1726701061595,-500.0,0.00014599,2]
[338492011,1726701061604,-500.0,0.00014599,2]
[338492012,1726701061613,-500.0,0.00014599,2]
[338492013,1726701061623,-500.0,0.00014599,2]
[338492014,1726701061633,-500.0,0.00014599,2]
[338492015,1726701061643,-500.0,0.00014599,2]
[338492016,1726701061653,-500.0,0.00014599,2]
[338492017,1726701061663,-500.0,0.00014599,2]
[338492018,1726701061673,-500.0,0.00014599,2]
[338492019,1726701061683,-500.0,0.00014599,2]
[338492020,1726701061693,-500.0,0.00014599,2]
[338492021,1726701061702,-438.50547172,0.00014599,2]
[338492022,1726701061712,-3221.24556682,0.00014599,2]
[338492023,1726701061722,-500.0,0.00014599,2]
[338492024,1726701061732,-500.0,0.00014599,2]
[338492025,1726701061741,-500.0,0.00014599,2]
[338492026,1726701061750,-500.0,0.00014599,2]
[338492027,1726701061761,-151.0,0.00014599,2]
[338492028,1726701061770,-500.0,0.00014599,2]
[338492029,1726701061783,-500.0,0.00014599,2]
[338492030,1726701061798,-500.0,0.00014599,2]
[338492031,1726701061808,-500.0,0.00014599,2]
[338492032,1726701061817,-500.0,0.00014599,2]
[338492033,1726701061826,-500.0,0.00014599,2]
[338492034,1726701061837,-500.0,0.00014599,2]
[338492035,1726701061846,-500.0,0.00014599,2]
[338492036,1726701061856,-500.0,0.00014599,2]
[338492037,1726701061873,-500.0,0.00014599,2]
[338492038,1726701061894,-151.0,0.00014599,2]
[338492039,1726701061918,-500.0,0.00014599,2]
[338492040,1726701061938,-500.0,0.00014599,2]
[338492041,1726701061951,-500.0,0.00014599,2]
[338492042,1726701061960,-300.0,0.00014599,2]
[338492043,1726701061970,-500.0,0.00014599,2]
[338492044,1726701061980,-500.0,0.00014599,2]
[338492045,1726701061989,-500.0,0.00014599,2]
[338492046,1726701061999,-500.0,0.00014599,2]
[338492047,1726701062008,-500.0,0.00014599,2]
[338492048,1726701062018,-500.0,0.00014599,2]
[338492049,1726701062027,-500.0,0.00014599,2]
[338492050,1726701062036,-2266.75,0.00014599,2]
[338492051,1726701062047,-2266.75,0.00014599,2]
[338492052,1726701062056,-2266.75,0.00014599,2]
[338492053,1726701062065,-2266.75,0.00014599,2]
[338492054,1726701062075,-2266.87470947,0.00014599,2]
[338492055,1726701062084,-500.0,0.00014599,2]
[338492056,1726701062094,-500.0,0.00014599,2]
[338492057,1726701062104,-500.0,0.00014599,2]
[338492058,1726701062114,-538.73,0.00014599,2]
[338492059,1726701062123,-870.3,0.00014599,2]
[338492060,1726701062132,-870.3,0.00014599,2]
[338492061,1726701062142,-870.3,0.00014599,2]
[338492062,1726701062152,-870.3,0.00014599,2]
[338492063,1726701062162,-870.32,0.00014599,2]
[338492064,1726701062171,-882.81,0.00014599,2]
[338492065,1726701062181,-882.81,0.00014599,2]
[338492066,1726701062191,-882.81,0.00014599,2]
[338492067,1726701062200,-882.81,0.00014599,2]
[338492068,1726701062210,-882.90145265,0.00014599,2]
[338492069,1726701062219,-1106016.80088539,0.000146,2]
[338492070,1726701062229,-1100.0,0.000146,2]
[338492071,1726701062238,-151.0,0.000146,2]
[338492072,1726701062248,-151.0,0.000146,2]
[338492073,1726701062258,-151.0,0.000146,2]
[338492074,1726701062267,-151.0,0.000146,2]
[338492075,1726701062277,-151.0,0.000146,2]
[338492076,1726701062286,-151.0,0.000146,2]
[338492077,1726701062296,-151.0,0.000146,2]
[338492078,1726701062307,-155.817805,0.000146,2]
[338492079,1726701062316,-155.817805,0.000146,2]
[338492080,1726701062329,-294.382158,0.000146,2]
[338492081,1726701062338,-151.0,0.000146,2]
[338492082,1726701062348,-151.0,0.000146,2]
[338492083,1726701062358,-151.0,0.000146,2]
[338492084,1726701062369,-151.0,0.000146,2]
[338492085,1726701062379,-151.0,0.000146,2]
[338492086,1726701062389,-151.0,0.000146,2]
[338492087,1726701062398,-151.0,0.000146,2]
[338492088,1726701062409,-151.0,0.000146,2]
[338492089,1726701062419,-151.0,0.000146,2]
[338492090,1726701062429,-257.889973,0.000146,2]
[338492091,1726701062438,-257.889973,0.000146,2]
[338492092,1726701062447,-151.0,0.000146,2]
[338492093,1726701062457,-151.0,0.000146,2]
[338492094,1726701062468,-151.0,0.000146,2]
[338492095,1726701062477,-1000.0,0.000146,2]
[338492096,1726701062487,-156.244954,0.000146,2]
[338492097,1726701062497,-156.244954,0.000146,2]
[338492098,1726701062507,-151.0,0.000146,2]
[338492099,1726701062517,-151.0,0.000146,2]
[338492100,1726701062527,-151.0,0.000146,2]
[338492101,1726701062538,-667.188131,0.000146,2]
[338492102,1726701062547,-151.0,0.000146,2]
[338492103,1726701062558,-207.774682,0.000146,2]
[338492104,1726701062567,-207.774682,0.000146,2]
[338492105,1726701062577,-151.0,0.000146,2]
[338492106,1726701062587,-151.0,0.000146,2]
[338492107,1726701062596,-151.0,0.000146,2]
[338492108,1726701062605,-206.113842,0.000146,2]
[338492109,1726701062615,-151.0,0.000146,2]
[338492110,1726701062624,-154.670468,0.000146,2]
[338492111,1726701062634,-154.670468,0.000146,2]
[338492112,1726701062643,-151.0,0.000146,2]
[338492113,1726701062652,-151.0,0.000146,2]
[338492114,1726701062661,-251.329173,0.000146,2]
[338492115,1726701062671,-151.0,0.000146,2]
[338492116,1726701062680,-154648.0,0.00014603,2]
[338492117,1726701062689,-244.46204659,0.00014603,2]
[338492118,1726701062698,-15745.61771151,0.0001464,2]
[338492119,1726701062708,-2000.0,0.00014643,2]
[338492120,1726701062717,-1266.18127475,0.0001466,2]
[338492121,1726701062727,-308.63472768,0.0001466,2]
[338492122,1726701062739,-421.35408526,0.0001466,2]
[338492123,1726701062749,-238.43,0.00014676,2]
[338492124,1726701062758,-1148.536976,0.00014679,2]
[338492125,1726701062768,-244.46204659,0.00014699,2]
[338492126,1726701062777,-203.0,0.000147,2]
[338492127,1726701062786,-1000.0,0.000147,2]
[338492128,1726701062797,-15745.61771151,0.00014727,2]
[338492129,1726701062807,-308.63472768,0.0001474,2]
[338492130,1726701062816,-347.94,0.00014763,2]
[338492131,1726701062825,-507.97429321,0.00014773,2]
[338492132,1726701062837,-500.0,0.00014773,2]
[338492133,1726701062848,-160.75957623,0.00014773,2]
[338492134,1726701062860,-500.0,0.00014773,2]
[338492135,1726701062869,-156.110018,0.0001478,2]
[338492136,1726701062879,-150.0,0.0001478,2]
[338492137,1726701062889,-203.0601175,0.00014784,2]
[338492138,1726701062899,-203.0601175,0.00014784,2]
[338492139,1726701062911,-298.0532462,0.00014784,2]
[338492140,1726701062923,-298.0532462,0.00014784,2]
[338492141,1726701062934,-2839.8143756,0.00014784,2]
[338492142,1726701062943,-2706.7475808,0.00014784,2]
[338492143,1726701062952,-1413.3419052,0.00014784,2]
[338492144,1726701062962,-1347.1161409,0.00014784,2]
[338492145,1726701062974,-11290.1977036,0.00014784,2]
[338492146,1726701062983,-10774.4637946,0.00014784,2]
[338492147,1726701062992,-170.036168,0.00014784,2]
[338492148,1726701063002,-170.036168,0.00014784,2]
[338492149,1726701063011,-289.4141649,0.00014784,2]
[338492150,1726701063021,-276.5157843,0.00014784,2]
[338492151,1726701063030,-152.0,0.00014788,3]
[338492152,1726701063040,-5004.54000969,0.00014789,6]
[338492153,1726701063051,-500.0,0.00014789,2]
[338492154,1726701063070,-500.0,0.00014789,2]
[338492155,1726701063083,-48739.850776,0.00014794,2]
[338492156,1726701063092,-567.851722,0.00014794,2]
[338492157,1726701063102,-500.0,0.00014794,2]
[338492158,1726701063112,-500.0,0.00014794,2]
[338492159,1726701063121,-500.0,0.00014794,2]
[338492160,1726701063131,-500.0,0.00014794,2]
[338492161,1726701063140,-500.0,0.00014794,2]
[338492162,1726701063150,-500.0,0.00014794,2]
[338492163,1726701063160,-500.0,0.00014794,2]
[338492164,1726701063170,-500.0,0.00014794,2]
[338492165,1726701063179,-500.0,0.00014794,2]
[338492166,1726701063190,-500.0,0.00014794,2]
[338492167,1726701063199,-500.0,0.00014794,2]
[338492168,1726701063209,-308.43206693,0.00014794,2]
[338492169,1726701063218,-500.0,0.00014794,2]
[338492170,1726701063228,-500.0,0.00014794,2]
[338492171,1726701063237,-500.0,0.00014794,2]
[338492172,1726701063247,-500.0,0.00014794,2]
[338492173,1726701063256,-500.0,0.00014794,2]
[338492174,1726701063265,-500.0,0.00014794,2]
[338492175,1726701063275,-500.0,0.00014794,2]
[338492176,1726701063284,-500.0,0.00014794,2]
[338492177,1726701063294,-500.0,0.00014794,2]
[338492178,1726701063304,-500.0,0.00014794,2]
[338492179,1726701063314,-500.0,0.00014794,2]
[338492180,1726701063326,-500.0,0.00014794,2]
[338492181,1726701063335,-500.0,0.00014794,2]
[338492182,1726701063344,-500.0,0.00014794,2]
[338492183,1726701063354,-483.82367052,0.00014794,2]
[338492184,1726701063365,-500.0,0.00014794,2]
[338492185,1726701063375,-500.0,0.00014794,2]
[338492186,1726701063385,-500.0,0.00014794,2]
[338492187,1726701063395,-500.0,0.00014794,2]
[338492188,1726701063406,-500.0,0.00014794,2]
[338492189,1726701063415,-1365.01,0.00014794,2]
[338492190,1726701063424,-500.0,0.00014794,2]